fUSD/lending_fUSD_20260314
["ID","MTS","AMOUNT","RATE_DAILY","PERIOD"]
[408359072,1773491458993,-1500.0,0.00045479,10]
[408359073,1773491459002,-150.0,0.00045484,30]
[408359074,1773491459011,-150.0,0.00045492,30]
[408359075,1773491459020,-322.1011925,0.00045499,30]
[408359076,1773491459029,-169.38985709,0.00045499,30]
[408359077,1773491459037,-619.5909,0.000455,2]
[408359078,1773491459048,-150.0,0.00045512,30]
[408359079,1773491459057,-150.0,0.00045525,30]
[408359080,1773491459066,-150.0,0.00045539,30]
[408359081,1773491459076,-322.1011925,0.00045549,30]
[408359082,1773491459084,-169.38985709,0.00045549,30]
[408359083,1773491459093,-150.0,0.00045551,30]
[408359084,1773491459102,-150.0,0.00045557,30]
[408359085,1773491459111,-151.5,0.00045563,2]
[408359086,1773491459120,-150.0,0.00045591,30]
[408359087,1773491459129,-150.0,0.00045594,30]
[408359088,1773491459138,-150.0,0.00045595,30]
[408359089,1773491459147,-150.0,0.00045599,30]
[408359090,1773491459156,-322.1011925,0.00045599,30]
[408359091,1773491459165,-169.38985709,0.00045599,30]
[408359092,1773491459174,-150.0,0.0004561,30]
[408359093,1773491459183,-150.0,0.00045625,30]
[408359094,1773491459192,-150.0,0.00045625,30]
[408359095,1773491459201,-150.0,0.00045649,30]
[408359096,1773491459211,-150.0,0.00045649,30]
[408359097,1773491459220,-322.1011925,0.00045649,30]
[408359098,1773491459229,-169.38985709,0.00045649,30]
[408359099,1773491459238,-150.0,0.00045649,30]
[408359100,1773491459247,-150.0,0.00045649,30]
[408359101,1773491459256,-150.0,0.00045665,30]
[408359102,1773491459265,-150.0,0.00045669,30]
[408359103,1773491459280,-500.0,0.00045671,2]
[408359104,1773491459297,-322.1011925,0.00045699,30]
[408359105,1773491459307,-169.38985709,0.00045699,30]
[408359106,1773491459316,-725.3557,0.000457,2]
[408359107,1773491459325,-150.0,0.00045704,30]
[408359108,1773491459339,-150.0,0.00045721,30]
[408359109,1773491459349,-150.0,0.00045728,30]
[408359110,1773491459358,-150.0,0.00045734,30]
[408359111,1773491459367,-150.0,0.00045741,30]
[408359112,1773491459378,-150.0,0.00045749,30]
[408359113,1773491459387,-322.1011925,0.00045749,30]
[408359114,1773491459397,-169.38985709,0.00045749,30]
[408359115,1773491459409,-531.25925884,0.00045753,10]
[408359116,1773491459418,-150.0,0.00045759,30]
[408359117,1773491459427,-150.0,0.00045787,30]
[408359118,1773491459436,-150.0,0.00045787,30]
[408359119,1773491459445,-322.1011925,0.00045799,30]
[408359120,1773491459455,-169.38985709,0.00045799,30]
[408359121,1773491459464,-671.63,0.000458,120]
[408359122,1773491459473,-150.0,0.00045804,30]
[408359123,1773491459482,-150.0,0.00045814,30]
[408359124,1773491459493,-150.0,0.00045832,30]
[408359125,1773491459502,-150.0,0.0004584,30]
[408359126,1773491459511,-150.0,0.0004584,30]
[408359127,1773491459520,-150.0,0.00045846,30]
[408359128,1773491459529,-322.1011925,0.00045849,30]
[408359129,1773491459539,-169.38985709,0.00045849,30]
[408359130,1773491459548,-150.0,0.00045852,30]
[408359131,1773491459557,-150.0,0.00045869,30]
[408359132,1773491459567,-150.0,0.00045874,30]
[408359133,1773491459575,-150.0,0.00045899,30]
[408359134,1773491459584,-322.1011925,0.00045899,30]
[408359135,1773491459594,-169.38985709,0.00045899,30]
[408359136,1773491459603,-150.0,0.00045904,30]
[408359137,1773491459612,-215.0,0.00045915,120]
[408359138,1773491459621,-150.0,0.00045924,30]
[408359139,1773491459631,-150.0,0.00045924,30]
[408359140,1773491459640,-150.0,0.00045924,30]
[408359141,1773491459648,-150.0,0.00045943,30]
[408359142,1773491459658,-322.1011925,0.00045949,30]
[408359143,1773491459667,-169.38985709,0.00045949,30]
[408359144,1773491459676,-150.0,0.00045963,30]
[408359145,1773491459685,-150.0,0.00045979,30]
[408359146,1773491459694,-150.0,0.00045982,30]
[408359147,1773491459703,-322.1011925,0.00045999,30]
[408359148,1773491459712,-169.38985709,0.00045999,30]
[408359149,1773491459721,-2000.0,0.00046,120]
[408359150,1773491459730,-300.25,0.00046,10]
[408359151,1773491459739,-849.1746,0.00046,2]
[408359152,1773491459748,-846.02,0.00046,30]
[408359153,1773491459757,-151.0,0.00046,60]
[408359154,1773491459766,-150.0,0.00046013,30]
[408359155,1773491459775,-150.0,0.00046016,30]
[408359156,1773491459784,-150.0,0.00046022,30]
[408359157,1773491459793,-175.12277759,0.00046027,2]
[408359158,1773491459803,-150.0,0.00046034,30]
[408359159,1773491459814,-150.0,0.00046049,30]
[408359160,1773491459826,-322.1011925,0.00046049,30]
[408359161,1773491459835,-169.38985709,0.00046049,30]
[408359162,1773491459846,-150.0,0.00046056,30]
[408359163,1773491459855,-150.0,0.00046056,30]
[408359164,1773491459864,-150.0,0.00046062,30]
[408359165,1773491459874,-150.0,0.00046081,30]
[408359166,1773491459884,-150.0,0.00046083,30]
[408359167,1773491459894,-150.0,0.00046089,30]
[408359168,1773491459904,-322.1011925,0.00046099,30]
[408359169,1773491459914,-169.38985709,0.00046099,30]
[408359170,1773491459924,-150.0,0.00046107,30]
[408359171,1773491459934,-150.0,0.00046112,30]
[408359172,1773491459945,-150.0,0.0004614,30]
[408359173,1773491459954,-150.0,0.00046144,30]
[408359174,1773491459964,-322.1011925,0.00046149,30]
[408359175,1773491459973,-169.38985709,0.00046149,30]
[408359176,1773491459983,-150.0,0.00046153,30]
[408359177,1773491459992,-151.5,0.00046163,2]
[408359178,1773491460002,-150.0,0.00046199,30]
[408359179,1773491460012,-150.0,0.00046199,30]
[408359180,1773491460021,-150.0,0.00046199,30]
[408359181,1773491460030,-322.1011925,0.00046199,30]
[408359182,1773491460040,-150.0,0.00046199,30]
[408359183,1773491460049,-169.38985709,0.00046199,30]
[408359184,1773491460060,-150.0,0.00046199,30]
[408359185,1773491460069,-150.0,0.00046199,30]
[408359186,1773491460079,-150.0,0.00046199,30]
[408359187,1773491460088,-162.0,0.000462,120]
[408359188,1773491460098,-296.85820384,0.00046212,30]
[408359189,1773491460107,-153.44511731,0.00046212,30]
[408359190,1773491460116,-150.0,0.00046222,30]
[408359191,1773491460126,-150.0,0.00046242,30]
[408359192,1773491460135,-322.1011925,0.00046249,30]
[408359193,1773491460143,-169.38985709,0.00046249,30]
[408359194,1773491460152,-151.5,0.0004625,2]
[408359195,1773491460161,-150.0,0.00046254,30]
[408359196,1773491460170,-150.0,0.00046258,30]
[408359197,1773491460179,-151.5,0.00046261,2]
[408359198,1773491460188,-150.0,0.00046271,30]
[408359199,1773491460197,-150.0,0.00046271,30]
[408359200,1773491460206,-151.5,0.00046288,2]
[408359201,1773491460215,-150.0,0.00046291,30]
[408359202,1773491460224,-150.0,0.00046292,30]
[408359203,1773491460233,-322.1011925,0.00046299,30]
[408359204,1773491460242,-169.38985709,0.00046299,30]
[408359205,1773491460251,-994.1295,0.000463,2]
[408359206,1773491460260,-150.0,0.00046309,30]
[408359207,1773491460270,-150.0,0.00046317,30]
[408359208,1773491460279,-150.0,0.00046337,30]
[408359209,1773491460288,-150.0,0.00046349,30]
[408359210,1773491460298,-322.1011925,0.00046349,30]
[408359211,1773491460307,-169.38985709,0.00046349,30]
[408359212,1773491460317,-150.0,0.00046362,30]
[408359213,1773491460326,-150.0,0.00046364,30]
[408359214,1773491460337,-150.0,0.00046373,30]
[408359215,1773491460349,-150.0,0.00046376,30]
[408359216,1773491460359,-150.0,0.00046382,30]
[408359217,1773491460368,-151.5,0.00046399,2]
[408359218,1773491460377,-322.1011925,0.00046399,30]
[408359219,1773491460387,-169.38985709,0.00046399,30]
[408359220,1773491460396,-150.0,0.00046419,30]
[408359221,1773491460405,-150.0,0.00046431,30]
[408359222,1773491460415,-150.0,0.00046435,30]
[408359223,1773491460424,-322.1011925,0.00046449,30]
[408359224,1773491460434,-169.38985709,0.00046449,30]
[408359225,1773491460443,-150.0,0.00046474,30]
[408359226,1773491460452,-150.0,0.00046474,30]
[408359227,1773491460461,-150.0,0.00046474,30]
[408359228,1773491460470,-150.0,0.00046486,30]
[408359229,1773491460479,-150.0,0.00046486,30]
[408359230,1773491460488,-150.0,0.00046494,30]
[408359231,1773491460498,-150.0,0.00046495,120]
[408359232,1773491460507,-150.0,0.00046499,30]
[408359233,1773491460518,-322.1011925,0.00046499,30]
[408359234,1773491460528,-169.38985709,0.00046499,30]
[408359235,1773491460537,-170.73,0.000465,12]
[408359236,1773491460546,-150.0,0.00046501,30]
[408359237,1773491460555,-150.0,0.00046503,30]
[408359238,1773491460565,-515782.242133,0.00046521,2]
[408359239,1773491460574,-150.0,0.00046529,30]
[408359240,1773491460585,-322.1011925,0.00046549,30]
[408359241,1773491460596,-169.38985709,0.00046549,30]
[408359242,1773491460606,-150.0,0.00046553,30]
[408359243,1773491460616,-150.0,0.00046566,30]
[408359244,1773491460628,-150.0,0.00046571,30]
[408359245,1773491460638,-1518.903636,0.00046575,15]
[408359246,1773491460753,-200.0,0.00046575,7]
[408359247,1773491460762,-300.0,0.00046575,120]
[408359248,1773491460771,-224.520308,0.00046575,120]
[408359249,1773491460780,-156.60005721,0.00046575,120]
[408359250,1773491460789,-150.0,0.00046584,30]
[408359251,1773491460798,-322.1011925,0.00046599,30]
[408359252,1773491460807,-169.38985709,0.00046599,30]
[408359253,1773491460816,-2000.0,0.000466,2]
[408359254,1773491460825,-1163.8284,0.000466,2]
[408359255,1773491460834,-150.0,0.00046612,30]
[408359256,1773491460843,-150.0,0.00046612,30]
[408359257,1773491460852,-1054.0,0.00046631,120]
[408359258,1773491460861,-150.0,0.00046633,30]
[408359259,1773491460871,-150.0,0.00046639,30]
[408359260,1773491460880,-150.0,0.00046641,30]
[408359261,1773491460889,-150.0,0.00046649,30]
[408359262,1773491460899,-322.1011925,0.00046649,30]
[408359263,1773491460909,-169.38985709,0.00046649,30]
[408359264,1773491460919,-150.0,0.00046657,30]
[408359265,1773491460929,-150.0,0.0004667,30]
[408359266,1773491460938,-151.5,0.00046674,2]
[408359267,1773491460949,-150.0,0.00046694,30]
[408359268,1773491460958,-322.1011925,0.00046699,30]
[408359269,1773491460968,-169.38985709,0.00046699,30]
[408359270,1773491460977,-161.0,0.000467,120]
[408359271,1773491460987,-150.0,0.00046701,30]
[408359272,1773491460996,-150.0,0.00046701,30]
[408359273,1773491461005,-150.0,0.0004671,30]
[408359274,1773491461014,-251.43288006,0.00046712,18]
[408359275,1773491461023,-150.0,0.00046729,30]
[408359276,1773491461032,-1260.0,0.00046744,2]
[408359277,1773491461043,-1214.0,0.00046744,2]
[408359278,1773491461055,-923.0,0.00046744,2]
[408359279,1773491461064,-1043.0,0.00046744,2]
[408359280,1773491461074,-150.0,0.00046749,30]
[408359281,1773491461084,-150.0,0.00046749,30]
[408359282,1773491461094,-322.1011925,0.00046749,30]
[408359283,1773491461104,-169.38985709,0.00046749,30]
[408359284,1773491461115,-150.0,0.00046749,30]
[408359285,1773491461125,-150.0,0.00046749,30]
[408359286,1773491461135,-150.0,0.00046764,30]
[408359287,1773491461144,-150.0,0.0004678,30]
[408359288,1773491461154,-151.5,0.00046783,2]
[408359289,1773491461163,-150.0,0.00046788,30]
[408359290,1773491461172,-150.0,0.00046799,30]
[408359291,1773491461182,-322.1011925,0.00046799,30]
[408359292,1773491461190,-169.38985709,0.00046799,30]
[408359293,1773491461200,-1362.495,0.000468,2]
[408359294,1773491461209,-357.19915219,0.00046804,2]
[408359295,1773491461218,-150.0,0.00046804,30]
[408359296,1773491461228,-150.0,0.00046841,30]
[408359297,1773491461237,-150.0,0.00046847,30]
[408359298,1773491461247,-322.1011925,0.00046849,30]
[408359299,1773491461257,-169.38985709,0.00046849,30]
[408359300,1773491461268,-150.0,0.0004685,30]
[408359301,1773491461278,-151.0,0.00046859,10]
[408359302,1773491461288,-151.0,0.00046859,10]
[408359303,1773491461298,-151.0,0.00046859,10]
[408359304,1773491461308,-151.0,0.00046859,10]
[408359305,1773491461318,-151.0,0.00046859,10]
[408359306,1773491461328,-151.0,0.00046859,10]
[408359307,1773491461341,-151.0,0.00046859,10]
[408359308,1773491461352,-151.0,0.00046859,10]
[408359309,1773491461361,-151.0,0.00046859,10]
[408359310,1773491461370,-151.0,0.00046859,10]
[408359311,1773491461380,-151.0,0.00046859,10]
[408359312,1773491461390,-151.0,0.00046859,10]
[408359313,1773491461399,-151.0,0.00046859,10]
[408359314,1773491461410,-151.0,0.00046859,10]
[408359315,1773491461420,-151.0,0.00046859,10]
[408359316,1773491461431,-151.0,0.00046859,10]
[408359317,1773491461440,-151.0,0.00046859,10]
[408359318,1773491461449,-151.0,0.00046859,10]
[408359319,1773491461458,-151.0,0.00046859,10]
[408359320,1773491461468,-151.0,0.00046859,10]
[408359321,1773491461479,-151.0,0.00046859,10]
[408359322,1773491461488,-151.0,0.00046859,10]
[408359323,1773491461498,-151.0,0.00046859,10]
[408359324,1773491461509,-151.0,0.00046859,10]
[408359325,1773491461520,-151.0,0.00046859,10]
[408359326,1773491461531,-151.0,0.00046859,10]
[408359327,1773491461542,-151.0,0.00046859,10]
[408359328,1773491461553,-151.0,0.00046859,10]
[408359329,1773491461563,-151.0,0.00046859,10]
[408359330,1773491461575,-151.0,0.00046859,10]
[408359331,1773491461585,-151.0,0.00046859,10]
[408359332,1773491461595,-151.0,0.00046859,10]
[408359333,1773491461605,-151.0,0.00046859,10]
[408359334,1773491461616,-151.0,0.00046859,10]
[408359335,1773491461627,-151.0,0.00046859,10]
[408359336,1773491461637,-151.0,0.00046859,10]
[408359337,1773491461647,-151.0,0.00046859,10]
[408359338,1773491461656,-151.0,0.00046859,10]
[408359339,1773491461667,-151.0,0.00046859,10]
[408359340,1773491461680,-151.0,0.00046859,10]
[408359341,1773491461691,-151.0,0.00046859,10]
[408359342,1773491461701,-151.0,0.00046859,10]
[408359343,1773491461711,-151.0,0.00046859,10]
[408359344,1773491461723,-151.0,0.00046859,10]
[408359345,1773491461733,-151.0,0.00046859,10]
[408359346,1773491461744,-151.0,0.00046859,10]
[408359347,1773491461753,-151.0,0.00046859,10]
[408359348,1773491461764,-151.0,0.00046859,10]
[408359349,1773491461773,-151.0,0.00046859,10]
[408359350,1773491461783,-151.0,0.00046859,10]
[408359351,1773491461793,-151.0,0.00046859,10]
[408359352,1773491461803,-151.0,0.00046859,10]
[408359353,1773491461813,-151.0,0.00046859,10]
[408359354,1773491461822,-151.0,0.00046859,10]
[408359355,1773491461832,-151.0,0.00046859,10]
[408359356,1773491461841,-227.0,0.00046859,10]
[408359357,1773491461851,-150.0,0.00046859,30]
[408359358,1773491461861,-150.0,0.00046887,30]
[408359359,1773491461872,-150.0,0.00046894,30]
[408359360,1773491461882,-322.1011925,0.00046899,30]
[408359361,1773491461892,-169.38985709,0.00046899,30]
[408359362,1773491461902,-150.0,0.00046906,30]
[408359363,1773491461912,-150.0,0.00046914,30]
[408359364,1773491461923,-150.0,0.00046916,30]
[408359365,1773491461933,-150.0,0.00046916,30]
[408359366,1773491461943,-150.0,0.00046919,30]
[408359367,1773491461953,-150.0,0.00046932,30]
[408359368,1773491461963,-167.1642822,0.00046939,2]
[408359369,1773491461974,-150.0,0.00046949,30]
[408359370,1773491461984,-322.1011925,0.00046949,30]
[408359371,1773491461994,-169.38985709,0.00046949,30]
[408359372,1773491462004,-1000.0,0.00046959,90]
[408359373,1773491462015,-150.0,0.00046965,30]
[408359374,1773491462026,-150.0,0.00046969,30]
[408359375,1773491462036,-150.0,0.00046989,30]
[408359376,1773491462047,-322.1011925,0.00046999,30]
[408359377,1773491462057,-169.38985709,0.00046999,30]
[408359378,1773491462068,-200.0,0.00047,7]
[408359379,1773491462078,-151.0,0.00047,60]
[408359380,1773491462088,-656.46,0.00047,30]
[408359381,1773491462099,-150.51,0.00047,30]
[408359382,1773491462110,-233.4,0.00047,30]
[408359383,1773491462120,-776.78,0.00047,30]
[408359384,1773491462129,-164.0,0.00047,120]
[408359385,1773491462139,-150.0,0.00047024,30]
[408359386,1773491462149,-150.0,0.00047024,30]
[408359387,1773491462158,-150.0,0.00047024,30]
[408359388,1773491462169,-150.0,0.00047024,30]
[408359389,1773491462180,-150.0,0.00047024,30]
[408359390,1773491462189,-150.0,0.00047024,30]
[408359391,1773491462199,-5000.0,0.00047025,19]
[408359392,1773491462208,-5000.0,0.00047025,19]
[408359393,1773491462218,-200.0,0.00047041,7]
[408359394,1773491462228,-322.1011925,0.00047049,30]
[408359395,1773491462238,-169.38985709,0.00047049,30]
[408359396,1773491462249,-150.0,0.00047059,30]
[408359397,1773491462259,-150.0,0.00047079,30]
[408359398,1773491462270,-150.0,0.00047083,30]
[408359399,1773491462281,-151.5,0.00047089,2]
[408359400,1773491462291,-150.0,0.00047099,30]
[408359401,1773491462301,-322.1011925,0.00047099,30]
[408359402,1773491462311,-169.38985709,0.00047099,30]
[408359403,1773491462321,-1595.0742,0.000471,2]
[408359404,1773491462332,-150.0,0.00047116,30]
[408359405,1773491462345,-25000.0,0.00047123,15]
[408359406,1773491462355,-150.0,0.00047129,30]
[408359407,1773491462365,-150.0,0.00047132,30]
[408359408,1773491462377,-150.0,0.00047132,30]
[408359409,1773491462387,-150.0,0.00047134,30]
[408359410,1773491462397,-150.0,0.00047142,30]
[408359411,1773491462408,-322.1011925,0.00047149,30]
[408359412,1773491462418,-169.38985709,0.00047149,30]
[408359413,1773491462429,-150.0,0.00047154,30]
[408359414,1773491462439,-151.5,0.00047158,2]
[408359415,1773491462450,-150.0,0.00047162,30]
[408359416,1773491462460,-150.0,0.00047189,30]
[408359417,1773491462471,-150.0,0.00047198,30]
[408359418,1773491462481,-322.1011925,0.00047199,30]
[408359419,1773491462491,-169.38985709,0.00047199,30]
[408359420,1773491462501,-2000.0,0.000472,7]
[408359421,1773491462512,-2000.0,0.000472,7]
[408359422,1773491462521,-2000.0,0.000472,7]
[408359423,1773491462531,-2000.0,0.000472,7]
[408359424,1773491462543,-2000.0,0.000472,7]
[408359425,1773491462554,-2000.0,0.000472,7]
[408359426,1773491462564,-500.0,0.000472,7]
[408359427,1773491462575,-150.0,0.00047201,30]
[408359428,1773491462586,-150.0,0.00047207,30]
[408359429,1773491462597,-445.28730576,0.00047212,30]
[408359430,1773491462608,-230.16767597,0.00047212,30]
[408359431,1773491462617,-150.0,0.00047244,30]
[408359432,1773491462627,-150.0,0.00047249,30]
[408359433,1773491462638,-322.1011925,0.00047249,30]
[408359434,1773491462648,-169.38985709,0.00047249,30]
[408359435,1773491462658,-150.0,0.0004726,30]
[408359436,1773491462668,-150.0,0.00047268,30]
[408359437,1773491462678,-150.0,0.00047285,30]
[408359438,1773491462688,-150.0,0.00047299,30]
[408359439,1773491462698,-150.0,0.00047299,30]
[408359440,1773491462708,-322.1011925,0.00047299,30]
[408359441,1773491462720,-169.38985709,0.00047299,30]
[408359442,1773491462729,-150.0,0.00047299,30]
[408359443,1773491462739,-150.0,0.00047299,30]
[408359444,1773491462749,-150.0,0.00047319,30]
[408359445,1773491462759,-150.0,0.00047338,30]
[408359446,1773491462768,-150.0,0.00047347,30]
[408359447,1773491462778,-150.0,0.00047347,30]
[408359448,1773491462787,-322.1011925,0.00047349,30]
[408359449,1773491462797,-169.38985709,0.00047349,30]
[408359450,1773491462806,-150.0,0.00047354,30]
[408359451,1773491462815,-150.0,0.00047378,30]
[408359452,1773491462825,-150.0,0.00047391,30]
[408359453,1773491462834,-150.0,0.00047399,30]
[408359454,1773491462843,-322.1011925,0.00047399,30]
[408359455,1773491462852,-169.38985709,0.00047399,30]
[408359456,1773491462862,-39843.03232884,0.000474,3]
[408359457,1773491462871,-1867.355,0.000474,2]
[408359458,1773491462880,-150.0,0.00047407,30]
[408359459,1773491462889,-150.0,0.00047409,30]
[408359460,1773491462899,-150.0,0.00047415,30]
[408359461,1773491462908,-150.0,0.00047437,30]
[408359462,1773491462917,-150.0,0.00047437,30]
[408359463,1773491462926,-322.1011925,0.00047449,30]
[408359464,1773491462936,-169.38985709,0.00047449,30]
[408359465,1773491462945,-150.0,0.00047464,30]
[408359466,1773491462954,-200.0,0.0004747,7]
[408359467,1773491462964,-150.0,0.00047477,30]
[408359468,1773491462973,-150.0,0.00047482,30]
[408359469,1773491462983,-257.7846528,0.00047488,4]
[408359470,1773491462992,-150.0,0.00047495,30]
[408359471,1773491463002,-322.1011925,0.00047499,30]
[408359472,1773491463011,-169.38985709,0.00047499,30]
[408359473,1773491463020,-21733.41928125,0.000475,9]
[408359474,1773491463029,-100367.11147472,0.000475,10]
[408359475,1773491463038,-200.0,0.00047511,7]
[408359476,1773491463047,-150.0,0.00047519,30]
[408359477,1773491463057,-151.5,0.0004752,2]
[408359478,1773491463171,-150.0,0.00047545,30]
[408359479,1773491463183,-150.0,0.00047547,30]
[408359480,1773491463193,-150.0,0.00047549,30]
[408359481,1773491463203,-322.1011925,0.00047549,30]
[408359482,1773491463213,-169.38985709,0.00047549,30]
[408359483,1773491463223,-150.0,0.00047554,30]
[408359484,1773491463232,-150.0,0.00047562,30]
[408359485,1773491463244,-150.0,0.00047562,30]
[408359486,1773491463254,-150.0,0.00047574,30]
[408359487,1773491463265,-150.0,0.00047574,30]
[408359488,1773491463274,-150.0,0.00047574,30]
[408359489,1773491463285,-322.1011925,0.00047599,30]
[408359490,1773491463294,-169.38985709,0.00047599,30]
[408359491,1773491463305,-2186.1143,0.000476,2]
[408359492,1773491463315,-150.0,0.00047613,30]
[408359493,1773491463325,-150.0,0.00047617,30]
[408359494,1773491463337,-150.0,0.00047629,30]
[408359495,1773491463347,-322.1011925,0.00047649,30]
[408359496,1773491463357,-169.38985709,0.00047649,30]
[408359497,1773491463367,-150.0,0.00047666,30]
[408359498,1773491463378,-500.0,0.00047669,2]
[408359499,1773491463389,-200.0,0.00047669,2]
[408359500,1773491463399,-500.0,0.00047671,60]
[408359501,1773491463408,-500.0,0.00047671,60]
[408359502,1773491463419,-500.0,0.00047671,60]
[408359503,1773491463428,-150.0,0.00047672,30]
[408359504,1773491463438,-150.0,0.00047675,30]
[408359505,1773491463448,-150.0,0.00047684,30]
[408359506,1773491463457,-150.0,0.00047686,30]
[408359507,1773491463466,-10902.76634235,0.00047689,3]
[408359508,1773491463475,-15278.59232754,0.00047689,3]
[408359509,1773491463485,-50014.69991007,0.00047689,2]
[408359510,1773491463495,-2000.0,0.00047689,7]
[408359511,1773491463507,-550.66925639,0.00047689,2]
[408359512,1773491463517,-15006.0,0.00047689,2]
[408359513,1773491463526,-9632.85,0.00047689,2]
[408359514,1773491463536,-200.080891,0.00047689,2]
[408359515,1773491463545,-1000.0,0.00047689,30]
[408359516,1773491463554,-9000.0,0.00047689,120]
[408359517,1773491463563,-489.55822239,0.00047689,2]
[408359518,1773491463572,-173.78,0.00047689,120]
[408359519,1773491463583,-770.53,0.00047689,120]
[408359520,1773491463593,-200.0,0.00047689,30]
[408359521,1773491463602,-200.0,0.00047689,120]
[408359522,1773491463611,-171.01682842,0.00047689,120]
[408359523,1773491463620,-171.01682842,0.00047689,120]
[408359524,1773491463630,-181.59131019,0.00047689,120]
[408359525,1773491463639,-171.01682841,0.00047689,120]
[408359526,1773491463648,-1129.83326697,0.00047689,30]
[408359527,1773491463657,-500.0,0.00047689,120]
[408359528,1773491463666,-3761713.25829464,0.00047689,30]
[408359529,1773491463675,-200.0,0.00047689,120]
[408359530,1773491463684,-279.86892042,0.00047689,60]
[408359531,1773491463693,-151.0,0.00047689,120]
[408359532,1773491463703,-151.0,0.00047689,120]
[408359533,1773491463712,-151.0,0.00047689,120]
[408359534,1773491463722,-315.188,0.00047689,120]
[408359535,1773491463735,-315.188,0.00047689,120]
[408359536,1773491463746,-315.188,0.00047689,120]
[408359537,1773491463755,-315.188,0.00047689,120]
[408359538,1773491463765,-467.232953,0.00047689,120]
[408359539,1773491463775,-467.232953,0.00047689,120]
[408359540,1773491463784,-467.232953,0.00047689,120]
[408359541,1773491463793,-467.232953,0.00047689,120]
[408359542,1773491463803,-169.094819,0.00047689,120]
[408359543,1773491463811,-151.0,0.00047689,120]
[408359544,1773491463820,-169.094819,0.00047689,120]
[408359545,1773491463829,-169.094819,0.00047689,120]
[408359546,1773491463839,-169.094819,0.00047689,120]
[408359547,1773491463848,-151.0,0.00047689,120]
[408359548,1773491463857,-151.304545,0.00047689,120]
[408359549,1773491463869,-151.0,0.00047689,120]
[408359550,1773491463879,-151.304545,0.00047689,120]
[408359551,1773491463888,-5579.55,0.0004769,120]
[408359552,1773491463897,-150.0,0.00047699,30]
[408359553,1773491463907,-322.1011925,0.00047699,30]
[408359554,1773491463917,-169.38985709,0.00047699,30]
[408359555,1773491463926,-150.0,0.00047711,15]
[408359556,1773491463936,-155.17,0.00047711,15]
[408359557,1773491463945,-150.0,0.00047712,30]
[408359558,1773491463954,-1554.43,0.00047712,30]
[408359559,1773491463965,-1554.43,0.00047712,30]
[408359560,1773491463975,-1554.43,0.00047712,30]
[408359561,1773491463984,-1554.43,0.00047712,30]
[408359562,1773491463993,-1554.43,0.00047712,30]
[408359563,1773491464003,-1554.43,0.00047712,30]
[408359564,1773491464012,-1554.43,0.00047712,30]
[408359565,1773491464022,-1554.43,0.00047712,30]
[408359566,1773491464033,-1554.43,0.00047712,30]
[408359567,1773491464043,-1554.43,0.00047712,30]
[408359568,1773491464053,-1554.43,0.00047712,30]
[408359569,1773491464065,-1554.43,0.00047712,30]
[408359570,1773491464075,-1554.43,0.00047712,30]
[408359571,1773491464086,-1554.43,0.00047712,30]